bitfinex/quotes_ETHUSD_20260225
["timestamp","ask_amount","ask_price","bid_price","bid_amount"]
[1772040889801,0.4530935,2066.0,2065.8,0.001]
[1772040889972,0.4530935,2065.9,2065.8,0.001]
[1772040890169,6.53447178,2065.9,2065.5,0.001]
[1772040890365,0.002,2066.3,2065.2,0.001]
[1772040890366,6.08137828,2065.7,2065.2,0.001]
[1772040890571,0.4530935,2065.6,2065.2,0.001]
[1772040890788,6.08137828,2065.7,2065.2,0.001]
[1772040891068,6.08137828,2065.5,2065.2,0.001]
[1772040891263,1.21047789,2065.3,2065.0,0.001]
[1772040892282,7.29185617,2065.3,2065.0,0.001]
[1772040893194,7.29185617,2065.3,2064.9,0.001]
[1772040894281,3.02536068,2065.5,2064.9,0.001]
[1772040894478,0.45163994,2065.4,2064.9,0.001]
[1772040894778,3.02536068,2065.5,2064.9,0.001]
[1772040895005,0.45163983,2065.4,2064.9,0.001]
[1772040895309,3.02536068,2065.5,2064.9,0.001]
[1772040898805,6.35405377,2065.4,2064.9,0.001]
[1772040898982,1.815,2065.5,2064.9,6.32341892]
[1772040899186,3.02537145,2065.5,2064.9,6.32341892]
[1772040899578,3.02536318,2065.5,2064.9,6.32341892]
[1772040900510,1.815,2065.5,2065.0,1.21065375]
[1772040900712,1.21032592,2065.6,2065.0,1.21065375]
[1772040900888,4.84063649,2065.9,2065.2,6.32241892]
[1772040901073,11.19469026,2065.9,2065.2,6.32241892]
[1772040901274,6.35405377,2065.8,2065.1,0.001]
[1772040901479,6.35405377,2065.6,2064.9,0.001]
[1772040901705,6.35405377,2065.4,2064.9,0.001]
[1772040902008,6.35405377,2065.2,2064.9,0.001]
[1772040902216,8.17805377,2065.2,2064.8,0.001]
[1772040902543,7.56609264,2066.1,2065.3,27.43584]
[1772040902816,1.20999695,2066.2,2065.4,6.32241892]
[1772040902978,7.56405072,2066.2,2065.1,6.32241892]
[1772040903180,7.56405072,2066.2,2065.0,1.21065375]
[1772040903181,6.35405377,2066.0,2065.2,2.454]
[1772040903479,6.35405377,2066.0,2065.2,6.32241892]
[1772040904688,6.35405377,2066.0,2065.3,1.21047789]
[1772040904887,0.002,2066.3,2065.6,6.32241892]
[1772040905127,0.002,2066.3,2065.8,6.32241892]
[1772040905435,1.826,2066.5,2066.1,33.75825892]
[1772040905436,0.002,2066.5,2066.1,33.75825892]
[1772040905588,0.002,2066.5,2066.2,8.77741892]
[1772040905785,0.002,2066.5,2065.8,3.2797039]
[1772040905786,0.002,2066.5,2066.3,8.77741892]
[1772040905981,0.002,2066.7,2066.4,6.32241892]
[1772040906184,0.002,2067.0,2066.6,6.32241892]
[1772040906421,0.002,2067.6,2067.0,27.43584]
[1772040906618,0.002,2067.6,2067.1,9.98784275]
[1772040906782,0.002,2067.9,2067.2,6.32241892]
[1772040906978,0.002,2067.9,2067.3,2.457]
[1772040908080,6.35605377,2067.9,2066.8,7.53198037]
[1772040908312,6.35605377,2067.9,2066.9,2.457]
[1772040908514,0.002,2067.9,2067.1,1.20942383]
[1772040908681,0.002,2067.9,2067.0,9.98886057]
[1772040910183,0.002,2067.9,2067.1,2.455]
[1772040910385,6.35605377,2067.9,2067.1,2.455]
[1772040910592,6.35405377,2067.7,2066.6,3.66467928]
[1772040910942,6.35405377,2067.7,2066.6,9.9870982]
[1772040911502,6.35405377,2067.7,2066.7,33.75825892]
[1772040911725,3.02901441,2067.8,2066.8,6.32241892]
[1772040911954,1.82,2067.8,2067.0,6.32241892]
[1772040912512,1.82,2067.8,2067.1,1.20942383]
[1772040912513,3.02903611,2067.8,2067.1,1.20942383]
[1772040912948,1.20903611,2067.8,2067.1,2.455]
[1772040913247,0.002,2067.5,2066.9,1.20953458]
[1772040913446,0.002,2067.5,2067.0,2.455]
[1772040914842,0.002,2067.5,2066.9,3.66453458]
[1772040915441,0.002,2067.5,2066.9,7.5319535]
[1772040915738,0.002,2067.5,2067.0,2.456]
[1772040917039,0.002,2067.5,2067.0,3.6654354]
[1772040917727,0.002,2067.5,2067.0,9.98985432]
[1772040918310,0.002,2067.5,2066.8,30.0]
[1772040918311,6.35605377,2067.5,2066.8,30.0]
[1772040918637,6.35605377,2067.5,2066.7,3.668629]
[1772040918837,1.20924833,2067.4,2066.7,3.668629]
[1772040919006,1.20924833,2067.4,2066.7,1.209629]
[1772040919209,7.5633021,2067.4,2066.7,3.669629]
[1772040920235,7.5633021,2067.4,2066.7,3.64494566]
[1772040921603,0.002,2067.5,2066.8,6.32241892]
[1772040921810,0.002,2067.5,2067.1,2.34243863]
[1772040922234,1.21119,2067.5,2067.1,2.34243863]
[1772040922659,1.21119,2067.5,2066.9,4.80243863]
[1772040923059,7.56336059,2067.3,2066.2,3.55238735]
[1772040923257,6.35405377,2067.2,2066.2,6.01138735]
[1772040923614,6.35405377,2067.2,2066.0,2.445]
[1772040923827,6.35405377,2067.2,2066.0,6.626]
[1772040924312,6.35405377,2067.2,2066.0,5.455]
[1772040924515,6.35405377,2067.2,2066.0,2.459]
[1772040924734,6.35405377,2067.2,2065.8,9.87500579]
[1772040924946,6.35405377,2067.2,2065.9,2.459]
[1772040925159,6.35405377,2067.2,2065.8,2.34243863]
[1772040925160,6.35405377,2067.0,2065.8,2.34243863]
[1772040925357,6.35405377,2067.0,2065.6,3.66927898]
[1772040925358,6.35405377,2066.8,2065.6,3.66927898]
[1772040925530,1.82,2066.7,2066.1,2.34243863]
[1772040925856,5.93515147,2066.6,2065.8,2.34243863]
[1772040926317,1.82,2066.7,2066.6,0.001]
[1772040926534,1.82,2066.7,2065.9,6.20291482]
[1772040927252,3.02971532,2066.7,2066.4,0.001]
[1772040927857,1.20971532,2066.7,2066.4,0.001]
[1772040928667,7.14445829,2067.3,2066.4,0.001]
[1772040929154,7.14445829,2067.3,2066.6,2.34243863]
[1772040929577,7.14445829,2067.3,2066.4,4.84017201]
[1772040929578,7.14445829,2067.3,2066.4,0.001]
[1772040929933,7.14445829,2067.3,2066.4,1.21082348]
[1772040930236,7.14445829,2067.3,2066.4,7.4137383]
[1772040933447,0.45058482,2067.2,2066.4,7.4137383]
[1772040933647,7.14445829,2067.3,2066.4,7.4137383]
[1772040933841,0.45058499,2067.2,2066.4,7.4137383]
[1772040934059,7.14445829,2067.3,2066.4,7.4137383]
[1772040934249,0.45058505,2067.2,2066.4,7.4137383]
[1772040934450,7.14445829,2067.3,2066.4,7.4137383]
[1772040934749,0.45104922,2067.2,2066.4,7.4137383]
[1772040934945,7.14445829,2067.3,2066.4,7.4137383]
[1772040935138,0.45104934,2067.2,2066.4,7.4137383]
[1772040935340,1.20948234,2067.0,2066.4,7.4137383]
[1772040935549,1.20948234,2067.0,2066.4,7.4137436]
[1772040936140,11.15753804,2067.2,2066.4,7.4137436]
[1772040936351,0.45120692,2067.1,2066.4,7.4137436]
[1772040936560,11.15753804,2067.2,2066.4,7.4137436]
[1772040936857,0.45120711,2067.1,2066.5,2.34243863]
[1772040937065,7.52925902,2067.2,2066.5,8.62694102]
[1772040937282,0.45132073,2067.1,2066.5,8.62694102]
[1772040937451,7.52925902,2067.2,2066.5,9.83671112]
[1772040937677,0.45131861,2067.1,2066.5,9.83671112]
[1772040937951,7.52925902,2067.2,2066.5,8.62694102]
[1772040938158,0.45131777,2067.1,2066.5,9.83670849]
[1772040938334,7.52925902,2067.2,2066.5,9.83670849]
[1772040938637,0.4513849,2067.1,2066.6,6.28550239]
[1772040938838,0.002,2067.1,2066.6,6.28550239]
[1772040939040,0.002,2067.1,2066.7,2.34243863]
[1772040939357,0.002,2067.1,2066.6,6.28550239]
[1772040939557,0.002,2067.1,2066.6,7.4951919]
[1772040939868,0.002,2067.1,2066.6,0.001]
[1772040940055,6.3218937,2067.1,2066.6,0.001]
[1772040941365,6.3218937,2067.1,2066.6,1.21069867]
[1772040941542,0.002,2067.1,2066.6,0.001]
[1772040943263,1.2114275,2067.1,2066.6,0.001]
[1772040943458,7.5313212,2067.1,2066.6,0.001]
[1772040945371,0.45192003,2067.0,2066.6,0.001]
[1772040945671,7.5313212,2067.1,2066.6,0.001]
[1772040945842,1.66141771,2067.0,2066.6,0.001]
[1772040946041,1.20949751,2067.0,2066.6,0.001]
[1772040946341,7.53137406,2067.1,2066.6,0.001]
[1772040947376,0.45204709,2067.0,2066.6,0.001]
[1772040947561,7.53137406,2067.1,2066.6,0.001]
[1772040947766,0.002,2067.1,2066.6,7.49518456]
[1772040948265,0.45225993,2067.0,2066.6,7.49518456]
[1772040948466,0.002,2067.1,2066.6,7.49518456]
[1772040949386,0.002,2067.1,2066.6,6.28550239]
[1772040949692,0.45236935,2067.0,2066.6,6.28550239]
[1772040949981,0.002,2067.1,2066.6,7.49520936]
[1772040949982,0.45236928,2066.9,2066.6,7.49520936]
[1772040950184,7.53131753,2067.1,2066.6,7.49520936]
[1772040950356,0.45241824,2067.0,2066.6,7.49520936]
[1772040950558,0.45241824,2066.9,2066.6,7.49520936]
[1772040950782,6.3218937,2067.1,2066.6,7.49520936]
[1772040951009,0.002,2067.4,2067.0,6.28450239]
[1772040951495,7.53114305,2067.4,2066.6,0.001]
[1772040951784,6.3198937,2067.1,2066.6,0.001]
[1772040952159,4.83899332,2067.5,2066.6,0.001]
[1772040952160,0.002,2067.9,2067.1,6.28450239]
[1772040952360,6.3198937,2068.2,2067.4,8.62694102]
[1772040952566,11.15512513,2068.2,2067.4,6.28450239]
[1772040952870,6.3198937,2068.1,2067.4,6.28450239]
[1772040953069,6.3198937,2068.1,2067.2,4.73102055]
[1772040954379,7.52879118,2068.0,2067.3,1.20930682]
[1772040955281,6.3198937,2068.0,2067.3,9.83624784]
[1772040955898,6.3198937,2068.0,2067.2,2.471]
[1772040956214,6.3198937,2068.0,2067.1,7.485489]
[1772040956686,7.54473108,2067.9,2067.1,7.485489]
[1772040958093,7.54473108,2067.9,2067.1,9.955489]
[1772040958293,0.7,2067.8,2067.1,9.955489]
[1772040958490,7.03577514,2067.8,2067.1,9.955489]
[1772040958807,6.33577514,2068.1,2067.6,2.34243863]
[1772040959098,6.33577514,2068.1,2067.4,8.61851151]
[1772040960589,6.33577514,2068.1,2067.6,2.34243863]
[1772040960789,1.20878058,2068.2,2067.6,3.55154392]
[1772040961290,1.20878058,2068.2,2067.6,2.34243863]
[1772040961495,7.54455572,2068.2,2067.4,8.61851151]
[1772040961695,7.54455572,2068.2,2067.0,12.86327654]
[1772040961696,6.33577514,2068.1,2067.0,2.26002055]
[1772040961866,6.33577514,2068.1,2066.9,9.74561582]
[1772040962068,6.33577514,2068.1,2067.0,2.47]
[1772040962270,6.33577514,2067.7,2066.8,2.26102055]
[1772040962463,6.33577514,2067.5,2066.8,0.001]
[1772040962768,6.33577514,2067.3,2066.8,0.001]
[1772040962995,3.04524833,2067.4,2066.8,0.001]
[1772040963268,0.45156147,2067.3,2066.8,0.001]
[1772040963500,3.04524833,2067.4,2066.8,0.001]
[1772040963705,6.78736634,2067.3,2066.8,0.001]
[1772040964005,6.78736634,2067.3,2066.6,0.001]
[1772040964006,6.78736634,2067.2,2066.6,0.001]
[1772040964201,6.33577514,2067.0,2066.6,0.001]
[1772040964374,6.78736634,2066.9,2066.6,0.001]
[1772040964581,1.837,2067.0,2066.4,0.001]
[1772040964582,6.33577514,2066.7,2066.4,0.001]
[1772040964881,1.20977498,2066.5,2066.4,0.001]
[1772040965080,1.20977498,2066.5,2066.1,0.001]
[1772040965081,1.66136618,2066.5,2066.1,0.001]
[1772040965277,1.20958209,2066.9,2066.4,2.34243863]
[1772040965479,0.45146991,2066.8,2066.2,8.61851151]
[1772040965686,8.54335723,2066.9,2066.1,0.001]
[1772040966008,6.78719526,2066.8,2066.1,0.001]
[1772040966203,6.33577514,2066.6,2066.1,0.001]
[1772040966583,1.20958209,2066.9,2066.4,2.34243863]
[1772040966784,0.45128549,2066.8,2066.4,2.34243863]
[1772040966990,1.20960546,2066.8,2066.4,2.34243863]
[1772040967483,1.20960546,2066.8,2066.1,9.8294719]
[1772040968405,1.20956662,2066.9,2066.1,9.8294719]
[1772040968779,7.54534176,2066.9,2066.1,9.8294719]
[1772040969600,1.20956662,2066.9,2066.2,6.27607288]
[1772040970106,4.83775509,2067.1,2066.2,6.27607288]
[1772040970287,0.4509641,2067.0,2066.2,6.27607288]
[1772040970491,4.83775509,2067.1,2066.2,6.27607288]
[1772040970687,4.83775509,2067.1,2066.3,1.20989207]
[1772040970907,11.17353023,2067.1,2066.3,1.20989207]
[1772040971719,1.839,2067.2,2066.7,2.34243863]
[1772040971913,1.839,2067.2,2066.5,6.27607288]
[1772040972121,1.20930727,2067.3,2066.5,6.27607288]
[1772040972328,6.78665625,2067.2,2066.1,2.26102055]
[1772040972609,6.33577514,2067.0,2066.1,0.001]
[1772040972915,1.2096579,2066.7,2066.1,0.001]
[1772040973913,6.78668707,2066.6,2065.6,1.21026062]
[1772040974088,6.33577514,2066.6,2065.6,1.21026062]
[1772040974714,6.33577514,2066.2,2065.5,0.1]
[1772040974886,6.33577514,2066.2,2065.5,1.31034275]
[1772040975619,6.33577514,2066.2,2065.4,13.58551562]
[1772040975620,6.33577514,2066.2,2065.4,0.001]
[1772040975921,6.33577514,2066.2,2065.1,2.26102055]
[1772040975922,6.33577514,2065.7,2065.1,0.001]
[1772040976105,8.17677514,2065.6,2065.1,0.001]
[1772040976617,1.841,2066.0,2065.2,6.27607288]
[1772040976787,3.05109802,2066.0,2065.3,7.48655077]
[1772040977133,1.2100457,2066.1,2065.4,2.34243863]
[1772040977488,1.20997475,2066.2,2065.4,11.08651151]
[1772040978405,3.0508373,2066.4,2065.7,2.34243863]
[1772040978811,1.20995063,2066.2,2065.5,9.95538647]
[1772040979235,1.20995063,2066.2,2065.5,9.8288251]
[1772040979521,1.20995063,2066.2,2065.5,7.48638647]
[1772040980321,1.20995063,2066.2,2065.3,11.11785163]
[1772040980623,1.20995063,2066.2,2065.4,3.6793739]
[1772040980919,11.17547121,2066.3,2065.6,6.27607288]
[1772040980920,1.20993209,2066.3,2065.6,6.27607288]
[1772040981129,3.05087362,2066.4,2065.6,6.27607288]
[1772040981424,6.33577514,2066.3,2065.4,1.2103739]
[1772040981632,1.842,2066.2,2065.4,36.27607288]
[1772040981789,1.842,2066.2,2065.4,6.27607288]
[1772040983226,1.21000919,2066.1,2065.5,1.21036068]
[1772040983591,1.21000919,2066.1,2065.4,9.9564452]
[1772040985306,1.842,2066.2,2065.5,3.28259728]
[1772040985612,4.83888074,2066.6,2065.8,3.28259728]
[1772040985613,9.38752919,2066.6,2065.8,3.28259728]
[1772040985812,3.05174027,2066.6,2065.9,6.38702387]
[1772040986128,1.842,2066.6,2065.9,6.38702387]
[1772040986425,1.21150416,2067.0,2066.3,6.38702387]
[1772040986663,0.002,2067.0,2066.3,6.38702387]
[1772040987012,1.21148325,2067.0,2066.3,6.38702387]
[1772040987213,1.21148325,2067.0,2066.3,7.59691319]
[1772040987822,0.002,2067.0,2066.3,7.59691319]
[1772040988144,0.002,2067.0,2066.5,6.38702387]
[1772040988821,0.002,2066.8,2066.5,6.38702387]
[1772040989031,0.002,2067.0,2066.5,6.38702387]
[1772040989548,0.002,2067.0,2066.5,10.06975524]
[1772040990541,0.002,2067.0,2066.5,7.59675524]
[1772040990936,0.002,2067.0,2066.5,10.07175524]
[1772040991528,0.002,2067.0,2066.5,10.07275524]
[1772040991949,0.002,2067.0,2066.5,8.86302387]
[1772040992436,0.002,2067.0,2066.5,10.07278981]
[1772040992644,0.002,2067.0,2066.5,8.86302387]
[1772040992845,0.002,2067.0,2066.4,4.49238751]
[1772040993547,7.26044172,2067.0,2066.2,6.37962849]
[1772040993751,6.04895938,2066.9,2066.0,6.37962849]
[1772040994325,6.04895938,2066.9,2066.0,8.85762849]
[1772040994652,6.50002681,2066.8,2066.0,8.85762849]
[1772040994820,6.04895938,2066.8,2066.0,8.85762849]
[1772040995154,6.04895938,2066.8,2066.1,6.37962849]
[1772040995548,6.04895938,2066.8,2066.0,2.478]
[1772040996144,1.2096579,2066.7,2066.0,3.68801969]
[1772040996333,1.2096579,2066.7,2066.0,10.06764818]
[1772040996653,1.2096579,2066.7,2066.0,7.58964818]
[1772040996828,1.2096579,2066.7,2066.0,10.06764818]
[1772040997344,1.2096579,2066.7,2066.0,7.58964818]
[1772040997556,1.2096579,2066.7,2066.0,10.06764818]
[1772040997557,7.25861728,2066.7,2066.0,10.06764818]
[1772040997854,7.25861728,2066.7,2066.0,7.58964818]
[1772040998154,7.25861728,2066.7,2066.0,10.06764818]
[1772040998336,7.25861728,2066.7,2066.0,8.85862849]
[1772040998539,7.25861728,2066.7,2065.9,14.015]
[1772040998729,7.25861728,2066.7,2065.9,8.85862849]
[1772040999857,6.67896183,2067.0,2066.5,6.37962849]
[1772040999858,0.002,2067.0,2066.5,6.37962849]
[1772041000158,10.88644505,2067.2,2066.5,6.37962849]
[1772041000352,0.45099194,2067.1,2066.5,6.37962849]
[1772041000548,10.88644505,2067.2,2066.0,6.37962849]
[1772041000549,6.04895938,2066.9,2066.0,6.37962849]
[1772041000749,6.04895938,2066.7,2066.0,6.37962849]
[1772041001128,0.45107286,2066.6,2065.8,1.21015462]
[1772041001458,0.45107286,2066.6,2066.2,0.001]
[1772041001459,6.04895938,2066.6,2066.2,0.001]
[1772041001828,6.04895938,2066.5,2066.2,0.001]
[1772041002247,6.04895938,2066.3,2066.0,0.001]
[1772041002561,1.20983352,2066.4,2065.7,0.001]
[1772041002562,6.04895938,2066.1,2065.7,0.001]
[1772041003273,7.2587929,2066.4,2065.7,0.001]
[1772041003564,0.45122736,2066.3,2065.7,0.001]
[1772041003767,7.2587929,2066.4,2065.7,0.001]
[1772041003939,0.45120255,2066.3,2065.7,0.001]
[1772041004279,7.2587929,2066.4,2065.7,0.001]
[1772041004437,1.20983352,2066.4,2065.7,9.66322577]
[1772041005037,3.0508164,2066.5,2065.9,11.51362849]
[1772041005234,1.21170004,2066.7,2066.0,9.66222577]
[1772041005455,1.21170004,2066.7,2066.1,6.37962849]
[1772041005456,1.21169543,2066.7,2066.1,6.37962849]
[1772041005645,0.002,2066.7,2066.1,6.37962849]
[1772041005852,1.21166081,2066.7,2066.1,6.37962849]
[1772041007270,0.002,2066.7,2066.2,1.20995063]
[1772041007971,0.002,2066.7,2066.2,7.58957912]
[1772041010254,0.002,2066.9,2066.3,12.14422577]
[1772041010555,0.002,2066.9,2066.4,6.37962849]
[1772041011054,0.002,2066.9,2066.4,8.86162849]
[1772041011668,1.21141036,2067.2,2066.5,7.58940347]
[1772041012247,1.21119654,2067.5,2067.0,6.37962849]
[1772041012572,0.002,2067.5,2067.0,6.37962849]
[1772041012872,1.20906114,2067.8,2067.1,6.37962849]
[1772041013977,4.83796296,2067.9,2067.2,1.20936532]
[1772041014356,4.83796296,2067.9,2067.1,7.58901732]
[1772041015280,4.83796296,2067.9,2067.1,8.86262849]
[1772041015281,0.002,2067.6,2067.1,8.86262849]
[1772041015479,0.002,2067.9,2067.3,6.37962849]
[1772041015980,0.002,2067.8,2067.4,1.20924833]
[1772041016155,0.002,2067.8,2067.3,6.37962849]
[1772041016353,0.002,2067.8,2067.3,7.58893268]
[1772041017374,0.002,2067.8,2067.3,6.37962849]
[1772041017558,6.35412728,2067.8,2067.1,2.485]
[1772041018781,1.20907288,2067.7,2067.0,7.68991445]
[1772041018986,1.20907288,2067.7,2067.1,30.0]
[1772041019183,7.56120016,2067.7,2067.0,10.17491445]
[1772041019484,7.56120016,2067.7,2066.9,3.69451502]
[1772041019655,7.56120016,2067.7,2066.9,10.17496943]
[1772041020310,7.56120016,2067.7,2066.9,7.68996943]
[1772041020483,7.56120016,2067.7,2066.9,10.17496943]
[1772041020984,7.56120662,2067.7,2066.7,3.28259728]
[1772041021164,6.35212728,2067.5,2066.6,30.0]
[1772041021362,6.35212728,2067.5,2066.6,9.386]
[1772041021566,6.35212728,2067.5,2066.6,4.423]
[1772041021778,9.40319874,2067.8,2067.0,9.76305169]
[1772041021972,1.21101944,2067.8,2067.3,6.48045441]
[1772041022181,0.002,2067.8,2067.3,6.48045441]
[1772041022359,1.21101966,2067.8,2067.3,6.48045441]
[1772041022987,0.002,2067.8,2067.0,3.28259728]
[1772041023205,0.002,2067.8,2067.1,7.32257814]
[1772041023407,0.002,2067.8,2067.1,13.80303255]
[1772041023702,0.002,2067.8,2067.2,6.48045441]
[1772041024094,0.002,2067.8,2067.3,9.76305169]
[1772041024404,0.002,2067.8,2067.4,6.48045441]
[1772041024769,6.35412728,2067.8,2067.2,2.486]
[1772041024996,6.35412728,2067.8,2067.3,7.68976123]
[1772041024997,0.002,2067.8,2067.3,7.68976123]
[1772041026889,0.002,2067.8,2067.2,2.488]
[1772041027706,0.002,2067.8,2067.3,1.20930682]
[1772041028090,0.002,2067.8,2067.5,0.001]
[1772041028290,0.002,2067.6,2067.5,0.001]
[1772041028715,0.002,2067.8,2067.5,0.001]
[1772041028922,0.002,2068.1,2067.6,6.48045441]
[1772041029089,0.002,2068.4,2068.0,3.28259728]
[1772041029416,0.002,2068.6,2068.1,6.48045441]
[1772041029789,0.002,2068.6,2068.1,7.68925147]
[1772041030206,0.002,2068.6,2068.1,10.17825147]
[1772041030577,3.0473028,2069.1,2068.4,6.48045441]
[1772041030783,6.35212728,2070.0,2069.0,9.76305169]
[1772041031038,6.35212728,2070.0,2069.3,3.28259728]
[1772041031183,4.82906359,2070.8,2069.6,33.28259728]
[1772041031388,4.82906359,2070.8,2069.5,6.48045441]
[1772041031389,6.80003905,2070.7,2069.7,5.274]
[1772041031698,6.35212728,2070.8,2069.5,6.48045441]
[1772041031880,6.35212728,2070.6,2069.5,8.97045441]
[1772041032077,1.839,2070.6,2069.7,6.48045441]
[1772041032504,1.20732119,2070.7,2069.9,9.76305169]
[1772041032806,8.11045875,2071.5,2070.3,6.48045441]
[1772041032807,4.82871278,2071.0,2070.3,6.48045441]
[1772041033007,4.82871278,2071.0,2070.3,8.97045441]
[1772041033320,4.82871278,2071.0,2070.3,2.49]
[1772041033525,7.80301824,2073.8,2070.9,6.48045441]
[1772041033742,6.7982223,2073.1,2071.8,3.28259728]
[1772041034016,6.35212728,2074.6,2073.1,6.48045441]
[1772041034184,1.20485579,2075.0,2074.0,6.48045441]
[1772041034384,2.14682444,2074.9,2074.1,1.06538878]
[1772041034586,2.14682444,2074.9,2073.2,0.18685624]
[1772041034587,5.88514916,2074.8,2073.5,6.48045441]
[1772041034796,1.20488519,2074.9,2073.7,6.48045441]
[1772041034988,1.20488519,2074.9,2073.6,30.0]
[1772041034989,1.20481927,2075.0,2074.1,6.48045441]
[1772041035683,10.37256571,2075.0,2073.6,6.48045441]
[1772041035916,7.72414916,2074.9,2073.6,6.48045441]
[1772041036210,1.20481927,2075.0,2073.8,3.28259728]
[1772041036598,1.20481927,2075.0,2073.6,10.17708507]
[1772041036599,1.20778965,2075.1,2074.2,30.0]
[1772041036798,1.20778965,2075.1,2073.6,7.77082522]
[1772041036799,1.20778965,2075.1,2073.8,30.0]
[1772041037010,1.20778965,2075.1,2073.8,6.48045441]
[1772041037218,1.20778965,2075.1,2074.1,3.28259728]
[1772041037385,1.20778965,2075.1,2074.1,30.0]
[1772041037586,1.20778965,2075.1,2074.1,6.123]
[1772041037818,0.003,2075.1,2074.1,30.0]
[1772041038128,0.003,2075.1,2073.9,1.20541923]
[1772041038414,5.88514916,2074.9,2073.4,30.0]
[1772041038713,5.88514916,2074.9,2073.5,4.748]
[1772041038913,5.88514916,2074.9,2073.5,2.006]
[1772041039130,1.839,2074.8,2073.5,2.006]
[1772041039532,7.72414916,2074.8,2073.4,6.48045441]
[1772041039890,7.09014265,2074.7,2073.4,6.48045441]
[1772041040097,7.09014265,2074.7,2073.2,6.51]
[1772041040405,7.09014265,2074.7,2073.1,1.20592349]
[1772041040606,7.09014265,2074.7,2073.0,11.30435344]
[1772041040607,7.09014265,2074.7,2073.0,7.68639384]
[1772041040826,7.09014265,2074.7,2073.0,6.48045441]
[1772041040827,5.88514916,2074.5,2073.0,6.48045441]
[1772041041130,7.72414916,2074.4,2073.0,6.48045441]
[1772041041344,5.88514916,2074.3,2073.0,6.48045441]
[1772041041622,5.88514916,2074.3,2073.0,7.68643217]
[1772041041807,0.002,2074.6,2073.4,36.48045441]
[1772041042128,0.002,2074.6,2073.4,7.68620266]
[1772041042342,0.002,2074.6,2071.9,4.34585644]
[1772041042343,7.72314916,2074.5,2073.0,7.68640049]
[1772041042498,5.88514916,2074.4,2072.6,7.68664007]
[1772041042697,5.88514916,2074.2,2072.4,1.20628898]
[1772041042917,5.88514916,2074.2,2072.5,30.0]
[1772041043440,5.88514916,2073.9,2072.3,9.18331921]
[1772041043597,5.88514916,2073.9,2072.3,7.68683542]
[1772041043794,1.838,2073.8,2072.3,7.68683542]
[1772041044107,7.88772373,2073.7,2072.3,7.68683542]
[1772041044617,5.88514916,2073.6,2072.1,7.68691996]
[1772041044814,1.20557457,2073.7,2072.4,6.48045441]
[1772041045131,1.837,2073.6,2072.5,6.48045441]
[1772041045298,1.837,2073.5,2072.2,24.332]
[1772041045493,1.837,2073.5,2072.1,6.48045441]
[1772041045494,7.72214916,2073.5,2072.1,7.68695018]
[1772041045695,7.72214916,2073.5,2072.1,7.68695979]
[1772041045896,1.20574901,2073.4,2072.3,7.53535343]
[1772041046101,1.20574901,2073.4,2072.7,6.3289644]
[1772041047112,1.838,2073.8,2072.7,6.3289644]
[1772041047113,1.20528396,2074.2,2073.0,36.3289644]
[1772041047325,1.20528396,2074.2,2073.1,6.3289644]
[1772041047709,1.838,2074.1,2073.1,6.3289644]
[1772041048047,1.20528396,2074.2,2073.1,7.53486855]
[1772041048209,1.838,2074.1,2073.1,7.53486855]
[1772041048410,3.04228396,2074.2,2073.2,36.3289644]
[1772041048645,3.04228396,2074.2,2073.3,6.3289644]
[1772041049222,1.20528396,2074.2,2073.3,6.3289644]
[1772041049619,3.0422699,2074.3,2073.6,30.0]
[1772041049835,3.0422699,2074.3,2073.5,6.3289644]
[1772041050019,3.0422699,2074.3,2073.5,7.53465379]
[1772041050746,3.0422699,2074.3,2073.2,18.305]
[1772041050747,7.09041906,2074.3,2073.2,18.305]
[1772041050909,7.09041906,2074.3,2073.2,8.198]
[1772041051336,7.09041906,2074.3,2073.2,4.274]
[1772041051639,1.2052699,2074.3,2073.4,30.0]
[1772041051844,3.0422699,2074.3,2073.3,6.3289644]
[1772041052046,1.2052699,2074.3,2073.3,6.3289644]
[1772041052354,1.20534207,2074.1,2073.4,30.0]
[1772041052655,5.88514916,2073.4,2071.4,6.42037449]
[1772041052811,5.88514916,2073.4,2070.8,15.38346464]
[1772041052812,5.88514916,2072.7,2071.0,6.42037449]
[1772041053007,1.719,2072.6,2071.2,6.42037449]
[1772041053211,1.719,2072.5,2071.2,6.42037449]
[1772041054108,1.20633082,2072.4,2071.2,6.42037449]
[1772041054345,1.20633082,2072.4,2071.2,7.62739552]
[1772041054537,3.04433082,2072.4,2071.5,30.0]
[1772041055041,1.20633082,2072.4,2071.6,6.42037449]
[1772041055374,4.82401055,2073.0,2071.8,16.675]
[1772041055375,1.838,2072.9,2071.8,16.675]
[1772041055545,1.838,2072.9,2071.9,36.42037449]
[1772041055846,1.838,2072.9,2072.0,36.42037449]
[1772041056148,1.838,2072.9,2071.4,2.495]
[1772041056149,1.838,2072.9,2072.2,1.20644725]
[1772041056317,1.20606172,2072.9,2072.2,7.62682174]
[1772041056522,1.20601114,2073.0,2072.2,7.62682174]
[1772041056831,1.20601114,2073.0,2072.2,6.42037449]
[1772041057935,1.20601114,2073.0,2071.8,20.74]
[1772041058141,5.88514916,2074.2,2072.7,8.74831846]
[1772041058343,1.20534207,2074.1,2073.0,6.42037449]
[1772041058553,1.836,2074.2,2073.2,6.42037449]
[1772041058738,3.04129591,2074.2,2073.3,36.42037449]
[1772041058947,3.04129591,2074.2,2073.1,2.498]
[1772041059247,1.836,2074.2,2073.2,6.42037449]
[1772041059432,0.002,2074.6,2073.1,2.498]
[1772041059433,1.20708881,2074.6,2073.5,36.41838808]
[1772041059746,1.20705678,2074.6,2073.6,29.99801359]
[1772041059914,1.20705731,2074.6,2073.6,29.99801359]
[1772041060115,0.002,2074.6,2073.7,7.62594906]
[1772041060317,0.002,2074.6,2073.7,6.42037449]
[1772041060520,0.002,2074.6,2073.9,30.0]
[1772041060820,0.002,2074.6,2073.8,6.42037449]
[1772041061026,0.002,2074.6,2073.7,17.5]
[1772041061422,1.84,2074.6,2073.0,8.74831846]
[1772041061630,1.84,2074.6,2073.3,30.0]
[1772041061835,1.84,2074.6,2073.3,28.327]
[1772041062052,1.84,2074.6,2073.3,18.198]
[1772041062243,1.84,2074.6,2072.9,1.20601337]
[1772041062244,7.51823276,2074.5,2072.9,1.20601337]